fUSD/lending_fUSD_20251001
["ID","MTS","AMOUNT","RATE_DAILY","PERIOD"]
[388743053,1759345832734,-1425.0,0.0001678,2]
[388743054,1759345832743,-1000.0,0.0001678,2]
[388743055,1759345832753,-1425.0,0.00016782,2]
[388743056,1759345832762,-1425.0,0.00016782,2]
[388743057,1759345832771,-150.0,0.00016782,2]
[388743058,1759345832780,-1000.0,0.00016782,2]
[388743059,1759345832790,-9211.34798985,0.00016784,2]
[388743061,1759345832800,-1000.0,0.00016785,2]
[388743063,1759345832810,-1000.0,0.00016786,2]
[388743065,1759345832819,-1425.0,0.00016795,2]
[388743067,1759345832828,-255.0,0.00016799,2]
[388743069,1759345832837,-150.0,0.00016804,2]
[388743071,1759345832847,-1000.0,0.00016811,2]
[388743073,1759345832856,-977.55872624,0.00016812,2]
[388743075,1759345832865,-1000.0,0.00016816,2]
[388743077,1759345832874,-1000.0,0.00016817,2]
[388743079,1759345832883,-150.0,0.00016818,2]
[388743081,1759345832893,-1000.0,0.00016819,2]
[388743083,1759345832902,-1000.0,0.0001682,2]
[388743085,1759345832911,-887.77907655,0.00016822,2]
[388743087,1759345832922,-150.0,0.00016824,2]
[388743089,1759345832935,-1000.0,0.00016828,2]
[388743091,1759345832944,-1000.0,0.00016829,2]
[388743093,1759345832953,-1293.05051,0.0001683,2]
[388743094,1759345832963,-466.0,0.00016831,2]
[388743095,1759345832972,-1000.0,0.00016832,2]
[388743096,1759345832982,-1425.0,0.00016835,2]
[388743097,1759345832991,-9552.16786547,0.00016839,2]
[388743098,1759345833001,-1000.0,0.00016842,2]
[388743099,1759345833011,-1000.0,0.00016844,2]
[388743100,1759345833020,-1425.0,0.00016846,2]
[388743101,1759345833030,-1000.0,0.00016848,2]
[388743102,1759345833039,-1000.0,0.00016852,2]
[388743103,1759345833047,-1000.0,0.00016853,2]
[388743104,1759345833057,-615.16749293,0.00016853,2]
[388743105,1759345833066,-1000.0,0.00016854,2]
[388743106,1759345833076,-1425.0,0.00016855,2]
[388743107,1759345833085,-1425.0,0.00016856,2]
[388743108,1759345833095,-500.0,0.00016857,2]
[388743109,1759345833105,-500.0,0.00016857,2]
[388743110,1759345833114,-500.0,0.00016857,2]
[388743111,1759345833124,-527.71351002,0.00016857,2]
[388743112,1759345833134,-500.0,0.00016857,2]
[388743113,1759345833144,-500.0,0.00016857,2]
[388743114,1759345833153,-500.0,0.00016857,2]
[388743115,1759345833163,-1000.0,0.00016858,2]
[388743116,1759345833173,-200.0,0.00016864,2]
[388743117,1759345833183,-150.0,0.00016867,2]
[388743118,1759345833195,-1000.0,0.00016868,2]
[388743119,1759345833205,-1000.0,0.00016872,2]
[388743120,1759345833214,-150.0,0.00016875,2]
[388743121,1759345833224,-1000.0,0.00016876,2]
[388743122,1759345833234,-1425.0,0.00016877,2]
[388743123,1759345833245,-1000.0,0.0001688,2]
[388743124,1759345833254,-1000.0,0.00016883,2]
[388743125,1759345833264,-1000.0,0.00016885,2]
[388743126,1759345833274,-1000.0,0.00016885,2]
[388743127,1759345833283,-1000.0,0.00016887,2]
[388743128,1759345833293,-1000.0,0.00016888,2]
[388743129,1759345833303,-1000.0,0.00016888,2]
[388743130,1759345833313,-9905.5980765,0.00016894,2]
[388743131,1759345833323,-1000.0,0.00016895,2]
[388743132,1759345833333,-1000.0,0.00016897,2]
[388743133,1759345833342,-1000.0,0.00016899,2]
[388743134,1759345833351,-366.0,0.000169,2]
[388743135,1759345833361,-256.56944181,0.000169,2]
[388743136,1759345833370,-1425.0,0.000169,2]
[388743137,1759345833380,-1000.0,0.000169,2]
[388743138,1759345833390,-372.88264396,0.000169,2]
[388743139,1759345833399,-612.7383583,0.000169,2]
[388743140,1759345833409,-150.0,0.00016903,2]
[388743141,1759345833418,-150.0,0.00016907,2]
[388743142,1759345833427,-1000.0,0.00016907,2]
[388743143,1759345833436,-1425.0,0.00016908,2]
[388743144,1759345833446,-1000.0,0.00016913,2]
[388743145,1759345833456,-357.21,0.00016916,2]
[388743146,1759345833465,-1000.0,0.00016918,2]
[388743147,1759345833474,-1238.15,0.00016918,2]
[388743148,1759345833483,-3200.32,0.00016918,2]
[388743149,1759345833493,-1000.0,0.00016919,2]
[388743150,1759345833502,-1000.0,0.0001692,2]
[388743151,1759345833511,-1000.0,0.00016928,2]
[388743152,1759345833520,-843.89101753,0.00016929,2]
[388743153,1759345833575,-156.10898247,0.00016929,2]
[388743154,1759345833584,-1000.0,0.0001693,2]
[388743155,1759345833594,-1425.0,0.00016931,2]
[388743156,1759345833604,-1000.0,0.00016932,2]
[388743157,1759345833614,-1000.0,0.00016933,2]
[388743158,1759345833623,-167.497,0.00016934,2]
[388743159,1759345833633,-2592.469,0.00016934,2]
[388743160,1759345833642,-150.0,0.00016939,2]
[388743161,1759345833652,-1425.0,0.00016942,2]
[388743162,1759345833662,-1425.0,0.00016947,2]
[388743163,1759345833671,-199.84661544,0.00016949,2]
[388743174,1759345837603,-500.0,0.00016875,2]
[388743175,1759345837613,-23.67263315,0.00016875,2]
[388743176,1759345837641,-476.32736685,0.00016875,2]
[388743177,1759345837651,-500.0,0.00016875,2]
[388743178,1759345837660,-116.36423315,0.00016875,2]
[388743183,1759345837719,-383.63576685,0.00016875,2]
[388743185,1759345837728,-300.0,0.00016875,2]
[388743187,1759345837737,-413.63824649,0.000169,2]
[388743189,1759345837747,-2944.8914969,0.00016949,2]
[388743195,1759345837796,-1761.90624721,0.00016949,2]
[388743197,1759345837810,-622.96682836,0.00016949,2]
[388743199,1759345837821,-4742.49401742,0.00016949,2]
[388743201,1759345837830,-1000.0,0.0001695,2]
[388743204,1759345837840,-1293.05052,0.0001695,2]
[388743206,1759345837849,-150.0,0.00016953,2]
[388743208,1759345837859,-1425.0,0.00016954,2]
[388743210,1759345837868,-1180.0,0.00016955,2]
[388743212,1759345837877,-250.88039148,0.00016962,2]
[388743214,1759345837889,-749.11960852,0.00016962,2]
[388743216,1759345837902,-1000.0,0.00016963,2]
[388743218,1759345837921,-541.00899353,0.00016965,2]
[388743220,1759345837940,-714.63053543,0.00016973,2]
[388743222,1759345837963,-710.36946457,0.00016973,2]
[388743224,1759345837984,-1000.0,0.00016973,2]
[388743226,1759345838003,-1000.0,0.00016976,2]
[388743228,1759345838020,-1469.18510194,0.00016983,2]
[388743230,1759345838030,-1723.34330789,0.00016988,2]
[388743232,1759345838041,-822.05372316,0.00016988,2]
[388743235,1759345838054,-1012.21526998,0.00016988,2]
[388743239,1759345838082,-1129.52772634,0.00016988,2]
[388743241,1759345838092,-150.0,0.0001699,2]
[388743243,1759345838101,-500.0,0.0001699,2]
[388743245,1759345838110,-500.0,0.0001699,2]
[388743247,1759345838120,-1621.0,0.0001699,2]
[388743249,1759345838131,-150.0,0.0001699,2]
[388743251,1759345838140,-500.0,0.0001699,2]
[388743253,1759345838150,-1521.0,0.0001699,2]
[388743255,1759345838159,-150.0,0.0001699,2]
[388743257,1759345838169,-500.0,0.0001699,2]
[388743259,1759345838179,-150.0,0.0001699,2]
[388743260,1759345838189,-150.0,0.0001699,2]
[388743262,1759345838199,-500.0,0.0001699,2]
[388743264,1759345838209,-500.0,0.0001699,2]
[388743267,1759345838219,-500.0,0.0001699,2]
[388743269,1759345838231,-500.0,0.0001699,2]
[388743271,1759345838241,-500.0,0.0001699,2]
[388743273,1759345838250,-150.0,0.0001699,2]
[388743274,1759345838259,-500.0,0.0001699,2]
[388743277,1759345838269,-150.0,0.0001699,2]
[388743279,1759345838278,-500.0,0.0001699,2]
[388743280,1759345838288,-150.0,0.0001699,2]
[388743282,1759345838296,-150.0,0.0001699,2]
[388743284,1759345838305,-150.0,0.0001699,2]
[388743286,1759345838315,-153.0156325,0.0001699,2]
[388743289,1759345838334,-150.0,0.0001699,2]
[388743291,1759345838346,-500.0,0.0001699,2]
[388743293,1759345838356,-150.0,0.0001699,2]
[388743295,1759345838365,-150.0,0.0001699,2]
[388743297,1759345838375,-500.0,0.0001699,2]
[388743299,1759345838385,-150.0,0.0001699,2]
[388743301,1759345838395,-170.13813178,0.0001699,2]
[388743303,1759345838404,-500.0,0.0001699,2]
[388743305,1759345838414,-500.0,0.0001699,2]
[388743307,1759345838424,-150.0,0.0001699,2]
[388743309,1759345838435,-150.0,0.00016992,2]
[388743312,1759345838446,-1425.0,0.00016993,2]
[388743314,1759345838455,-1000.0,0.00016993,2]
[388743316,1759345838467,-1000.0,0.00016993,2]
[388743318,1759345838477,-1000.0,0.00016994,2]
[388743320,1759345838487,-151.0,0.00016997,2]
[388743322,1759345838498,-151.0,0.00016997,2]
[388743324,1759345838507,-151.0,0.00016997,2]
[388743326,1759345838517,-1000.0,0.00016999,2]
[388743328,1759345838527,-1026.29763777,0.00016999,5]
[388743330,1759345838538,-10000.0,0.00016999,2]
[388743332,1759345838548,-150.0,0.00016999,2]
[388743334,1759345838559,-178.88788583,0.00016999,2]
[388743336,1759345838569,-1000.0,0.00017,2]
[388743338,1759345838579,-2000.0,0.00017,2]
[388743340,1759345838588,-2000.0,0.00017,2]
[388743342,1759345838600,-2000.0,0.00017,2]
[388743344,1759345838610,-68280.401443,0.00017,2]
[388743346,1759345838623,-49884.3234125,0.00017,2]
[388743349,1759345838635,-2719.1641495,0.00017,2]
[388743436,1759345839449,-1369.0,0.00017,2]
[388743438,1759345839461,-5452.3,0.00017,2]
[388743444,1759345839504,-450.19514872,0.00017,2]
[388743451,1759345839559,-769033.77184728,0.00017,2]
[388743453,1759345839571,-115653.0000006,0.00017,2]
[388743458,1759345839615,-452.33715989,0.00017,2]
[388743459,1759345839627,-272.24010028,0.00017,2]
[388743460,1759345839671,-10899.88899999,0.00017,2]
[388743774,1759345842677,-678.096135,0.00017,2]
[388743784,1759345842778,-32809.67400001,0.00017,2]
[388743791,1759345842839,-37318.35623024,0.00017,2]
[388743793,1759345842851,-9256.97768528,0.00017,2]
[388744051,1759345845410,-175.51473043,0.000169,2]
[388744052,1759345845419,-3654.08705759,0.00017,2]
[388744074,1759345845623,-2660.594965,0.00017,2]
[388744076,1759345845634,-2162.34268993,0.00017,2]
[388744087,1759345845729,-73000.87746071,0.00017,2]
[388744089,1759345845738,-151.0,0.00017,2]
[388744091,1759345845748,-3134.220185,0.00017,2]
[388744093,1759345845757,-875.0812169,0.00017,2]
[388744095,1759345845766,-150.0,0.00017,2]
[388744097,1759345845776,-1844.8555031,0.00017,2]
[388744099,1759345845785,-23360.7172763,0.00017,2]
[388744101,1759345845794,-1041.35590643,0.00017,2]
[388744103,1759345845804,-869.91037762,0.00017,2]
[388744105,1759345845813,-250.0,0.00017,2]
[388744107,1759345845822,-65491.01277808,0.00017,2]
[388746728,1759345894017,500.0,0.00027397,120]
[388746729,1759345894212,500.0,0.00027671,120]
[388746730,1759345894691,500.0,0.00027945,120]
[388746731,1759345894768,500.0,0.00028219,120]
[388746732,1759345894845,534.0,0.00028493,120]
[388746733,1759345899999,165.15,0.00016475,2]
[388746751,1759345970500,250.0,0.0001643,2]
[388746757,1759345986430,1000.0,0.00016438,2]
[388746761,1759346003880,-1000.0,0.00033038,30]
[388746762,1759346003911,-50000.0,0.00033038,30]
[388746763,1759346003939,-50000.0,0.00033038,31]
[388746764,1759346003968,-50000.0,0.00033038,32]
[388746765,1759346003999,-50000.0,0.00033038,33]
[388746766,1759346004029,-50000.0,0.00033038,34]
[388746767,1759346004058,-50000.0,0.00033038,35]
[388746768,1759346004090,-50000.0,0.00033038,36]
[388746769,1759346004124,-50000.0,0.00033038,37]
[388746770,1759346004153,-50000.0,0.00033038,38]
[388746771,1759346004182,-50000.0,0.00033038,39]
[388746772,1759346004209,-306159.35155,0.00033038,31]
[388746773,1759346004235,-39524.67883208,0.00033038,30]
[388746774,1759346004366,-15769.42039016,0.00033038,30]
[388746775,1759346004391,-50000.0,0.00033038,30]
[388746776,1759346004416,-13836.68003979,0.00033038,30]
[388746777,1759346004440,-32090.38807924,0.00033038,30]
[388746778,1759346004464,-13741.45207608,0.00033038,30]
[388746779,1759346004487,-27811.25057057,0.00033038,30]
[388746780,1759346004511,-185725.78000148,0.00033038,30]
[388746781,1759346004536,-39173.31546231,0.00033038,30]
[388746782,1759346004560,-201777.28776181,0.00033038,30]
[388746783,1759346004584,-14099.19454926,0.00033038,30]
[388746784,1759346004610,-11291.33521251,0.00033038,30]
[388746785,1759346004638,-217558.2975907,0.00033038,30]
[388746786,1759346004665,-1692.46,0.00033038,120]
[388746787,1759346004692,-1692.46,0.00033038,120]
[388746788,1759346004719,-1692.46,0.00033038,120]
[388746789,1759346004750,-1692.46,0.00033038,120]
[388746790,1759346004776,-1692.46,0.00033038,120]
[388746791,1759346004804,-1692.46,0.00033038,120]
[388746792,1759346004832,-1692.46,0.00033038,120]
[388746793,1759346004862,-1692.46,0.00033038,120]
[388746794,1759346004888,-1692.46,0.00033038,120]
[388746795,1759346004917,-1692.46,0.00033038,120]
[388746796,1759346004946,-1692.46,0.00033038,120]
[388746797,1759346004972,-1692.46,0.00033038,120]
[388746798,1759346004999,-1692.46,0.00033038,120]
[388746799,1759346005028,-1692.46,0.00033038,120]
[388746800,1759346005056,-1692.46,0.00033038,120]
[388746801,1759346005084,-1692.46,0.00033038,120]
[388746802,1759346005111,-1692.46,0.00033038,120]
[388746803,1759346005138,-1692.46,0.00033038,120]
[388746804,1759346005164,-1692.46,0.00033038,120]
[388746805,1759346005189,-1692.46,0.00033038,120]
[388746806,1759346005214,-1692.46,0.00033038,120]
[388746807,1759346005242,-1692.46,0.00033038,120]
[388746808,1759346005267,-1692.46,0.00033038,120]
[388746809,1759346005292,-1692.61,0.00033038,120]
[388746810,1759346005315,-4000.0,0.00033038,31]
[388746811,1759346005340,-1138007.96352776,0.00033038,30]
[388746812,1759346005364,-34248.31420962,0.00033038,30]
[388746813,1759346005387,-30221.19243084,0.00033038,30]
[388746814,1759346005413,-2083344.90771579,0.00033038,30]
[388746817,1759346010654,-2455704.33288588,0.00033038,30]
[388746818,1759346010680,-1911.0,0.00033038,120]
[388746819,1759346010706,-2000.0,0.00033038,120]
[388746820,1759346010732,-288.18956394,0.00033038,120]
[388746821,1759346010756,-251.93931355,0.00033038,30]
[388746822,1759346010781,-161.0,0.00033038,120]
[388746823,1759346010806,-500.0,0.00033038,120]
[388746824,1759346010831,-354.28330605,0.00033038,120]
[388746825,1759346010856,-1363.0,0.00033038,120]
[388746826,1759346010880,-3751.0,0.00033038,120]
[388746827,1759346010903,-95783.21366507,0.00033038,30]
[388746828,1759346010927,-154.73466652,0.00033038,60]
[388746829,1759346010950,-158.09826558,0.00033038,120]
[388746830,1759346010974,-1077.77,0.00033038,30]
[388746831,1759346010998,-10397.0,0.00033038,30]
[388746832,1759346011023,-3000.0,0.00033038,120]
[388746833,1759346011046,-7734.93532266,0.00033038,31]
[388746834,1759346011070,-34846.35,0.00033038,90]
[388746835,1759346011099,-353550.35039138,0.00033038,45]
[388746836,1759346011123,-1880.0,0.00033038,120]
[388746837,1759346011147,-2100.0,0.00033038,120]
[388746838,1759346011172,-2800.0,0.00033038,120]
[388746839,1759346011196,-2550.0,0.00033038,120]
[388746840,1759346011224,-2880.0,0.00033038,120]
[388746841,1759346011250,-434.52983514,0.00033038,60]
[388746842,1759346011275,-3000.0,0.00033038,120]
[388746843,1759346011300,-1807.0,0.00033038,120]
[388746844,1759346011325,-1252.43002487,0.00033038,120]
[388746845,1759346011350,-2113.75729806,0.00033038,120]
[388746846,1759346011374,-479.62056696,0.00033038,120]
[388746847,1759346011401,-706.91440806,0.00033038,120]
[388746848,1759346011432,-458.60074732,0.00033038,120]
[388746849,1759346011458,-500.0,0.00033038,120]
[388746850,1759346011483,-312.95756712,0.00033038,120]
[388746851,1759346011507,-999.999999,0.00033038,120]
[388746852,1759346011533,-2600.41496613,0.00033038,40]
[388746853,1759346011559,-2715.47428904,0.00033038,60]
[388746854,1759346011584,-3320.07460839,0.00033038,120]
[388746855,1759346011608,-5000.0,0.00033038,60]
[388746856,1759346012036,-5192.0,0.00033038,120]
[388746857,1759346012065,-659.38,0.00033038,120]
[388746858,1759346012093,-13400.0,0.00033038,120]
[388746859,1759346012120,-11551.0518266,0.00033038,30]
[388746860,1759346012147,-2403.0,0.00033038,120]
[388746861,1759346012174,-1955895.59648268,0.00033038,30]
[388746900,1759346094332,184.58,0.00016136,2]
[388746903,1759346098396,-5000000.0,0.00033039,30]
[388746906,1759346101923,-5000000.0,0.00033039,30]
[388746909,1759346105376,-5000000.0,0.00033039,30]
[388746914,1759346110032,-5000000.0,0.00033039,30]
[388746919,1759346114493,-5000000.0,0.00033039,30]
[388746922,1759346118922,-5000000.0,0.00033039,30]
[388746931,1759346127798,-5000000.0,0.00033039,30]
[388746934,1759346132504,-5000000.0,0.00033039,30]
[388746939,1759346136190,-5000000.0,0.00033039,30]
[388746941,1759346136557,217.47759441,0.00016136,2]
[388746950,1759346146127,-5000000.0,0.00033039,30]
[388746952,1759346151121,-5000000.0,0.00033039,30]
[388746966,1759346195637,150.0,0.000113,2]
[388746967,1759346196056,270.0,0.0001248,2]
[388746969,1759346273147,1115.12,0.00016265,2]
[388746971,1759346276575,167.9,0.00016359,2]
[388746972,1759346281920,247.97256344,0.00030137,120]
[388746974,1759346285509,168.0,0.00016575,2]
[388746993,1759346320087,414.63226604,0.000301,120]
[388747012,1759346466357,500.0,0.00030136,120]
[388747014,1759346495146,217.4775944,0.00016575,2]
[388747017,1759346507886,2028.56,0.00016087,2]
[388747020,1759346533822,168.0,0.00016373,2]
[388747021,1759346537755,168.0,0.00016416,2]
[388747023,1759346542377,463.5,0.00016072,2]
[388747035,1759346655945,500.0,0.00016051,2]
[388747068,1759346739524,1204.0,0.00016421,2]
[388747069,1759346754936,99115.12736847,0.0001659,2]
[388747072,1759346786978,-201.0,0.00016611,2]
[388747073,1759346787006,-300.0,0.00016612,2]
[388747074,1759346787032,-341.57578412,0.00016612,2]
[388747075,1759346787057,-195.0,0.00016612,2]
[388747076,1759346787083,-250.0,0.00016613,2]
[388747077,1759346787108,-195.0,0.00016616,2]
[388747078,1759346787136,-201.0,0.00016623,2]
[388747079,1759346787164,-201.0,0.00016625,2]
[388747080,1759346787190,-211.52,0.000167,2]
[388747081,1759346787215,-1000.0,0.000167,2]
[388747082,1759346787243,-201.0,0.00016713,2]
[388747083,1759346787269,-300.0,0.00016719,2]
[388747084,1759346787296,-201.0,0.0001672,2]
[388747085,1759346787321,-1000.0,0.000168,2]
[388747086,1759346787345,-887.77907655,0.00016814,2]
[388747087,1759346787375,-1200.0,0.00016831,2]
[388747088,1759346787400,-1000.0,0.00016832,2]
[388747089,1759346787425,-150.99,0.00016843,2]
[388747090,1759346787450,-200.0,0.00016864,2]
[388747091,1759346787477,-201.0,0.00016874,2]
[388747092,1759346787502,-463.5,0.00016876,2]
[388747093,1759346787527,-257.91778498,0.0001689,2]
[388747094,1759346787552,-260.0,0.00016898,2]
[388747095,1759346787576,-5249.71735435,0.00016899,2]
[388747140,1759347031732,-257.91778498,0.00016625,2]
[388747141,1759347031743,-1092.62085,0.0001683,2]
[388747142,1759347031754,-2500.0,0.00016847,2]
[388747143,1759347031764,-337.70954693,0.00016864,2]
[388747144,1759347031776,-250.0,0.00016864,2]
[388747145,1759347031787,-195.0,0.00016864,2]
[388747146,1759347031797,-1200.0,0.00016875,2]
[388747147,1759347031806,-2593.46953771,0.00016876,2]
[388747148,1759347031816,-250.0,0.00016887,2]
[388747149,1759347031827,-300.0,0.00016899,2]
[388747150,1759347031837,-5772.8389,0.000169,2]
[388747151,1759347031847,-175.20109885,0.000169,2]
[388747152,1759347031856,-335.5943796,0.000169,2]
[388747153,1759347031865,-415.68144003,0.000169,2]
[388747154,1759347031875,-335.59437954,0.00016902,2]
[388747155,1759347031885,-415.68143999,0.00016902,2]
[388747156,1759347031894,-335.59437954,0.00016903,2]
[388747157,1759347031904,-404.75739737,0.00016904,2]
[388747158,1759347031917,-10.92404262,0.00016904,2]
[388747159,1759347031926,-335.59437954,0.00016905,2]
[388747160,1759347031935,-415.68143999,0.00016906,2]
[388747161,1759347031945,-335.59437954,0.00016906,2]
[388747162,1759347031955,-201.0,0.00016906,2]
[388747163,1759347031964,-150.99,0.00016906,2]
[388747164,1759347031974,-9640.49,0.00016906,2]
[388747165,1759347031983,-299.99,0.00016906,4]
[388747166,1759347031993,-9999.99,0.00016906,2]
[388747167,1759347032003,-335.59437954,0.00016908,2]
[388747168,1759347032012,-415.68143999,0.00016908,2]
[388747169,1759347032021,-335.59437954,0.00016909,2]
[388747170,1759347032031,-415.68143999,0.0001691,2]
[388747171,1759347032040,-335.59437954,0.00016911,2]
[388747172,1759347032049,-415.68143999,0.00016912,2]
[388747173,1759347032058,-335.59437954,0.00016912,2]
[388747174,1759347032068,-233.8097007,0.00016914,2]
[388747175,1759347032078,-335.59437954,0.00016914,2]
[388747176,1759347032087,-415.68143999,0.00016914,2]
[388747177,1759347032096,-357.21,0.00016918,2]
[388747178,1759347032106,-167.794,0.00016949,2]
[388747179,1759347032115,-2481.07,0.00016949,2]
[388747181,1759347032125,-1092.62086,0.0001695,2]
[388747183,1759347032134,-500.0,0.00016973,2]
[388747185,1759347032144,-614.57936871,0.00016973,2]
[388747187,1759347032154,-500.0,0.00016973,2]
[388747188,1759347032164,-500.0,0.00016973,2]
[388747190,1759347032174,-500.0,0.00016973,2]
[388747191,1759347032184,-500.0,0.00016973,2]
[388747192,1759347032193,-500.0,0.00016973,2]
[388747193,1759347032202,-500.0,0.00016973,2]
[388747194,1759347032213,-500.0,0.00016973,2]
[388747195,1759347032237,-500.0,0.00016973,2]
[388747196,1759347032247,-500.0,0.00016973,2]
[388747198,1759347032257,-500.0,0.00016973,2]
[388747200,1759347032268,-500.0,0.00016973,2]
[388747202,1759347032278,-500.0,0.00016973,2]
[388747204,1759347032288,-1006.46,0.0001699,2]
[388747206,1759347032298,-1006.46,0.0001699,2]
[388747208,1759347032309,-1000.0,0.00016999,2]
[388747211,1759347032319,-928.62,0.00016999,2]
[388747213,1759347032329,-2188.59358444,0.00016999,2]
[388747214,1759347032366,-783.13641556,0.00016999,2]
[388747215,1759347032377,-1000.0,0.00016999,2]
[388747216,1759347032387,-38.41850375,0.00016999,2]
[388747217,1759347032398,-751.78752043,0.00016999,2]
[388747218,1759347032410,-864.72410434,0.00016999,2]
[388747219,1759347032423,-2458.06987148,0.00016999,2]
[388747220,1759347032433,-1000.0,0.00016999,2]
[388747221,1759347032442,-5277.66486557,0.00016999,2]
[388747222,1759347032478,-954.33513443,0.00016999,2]
[388747223,1759347032488,-1000.0,0.00016999,2]
[388747224,1759347032498,-1318.281,0.00016999,2]
[388747225,1759347032510,-315.91945115,0.00016999,2]
[388747226,1759347032522,-184.08054885,0.00016999,2]
[388747227,1759347032532,-500.0,0.00016999,2]
[388747228,1759347032543,-500.0,0.00016999,2]
[388747229,1759347032552,-500.0,0.00016999,2]
[388747230,1759347032562,-500.0,0.00016999,2]
[388747231,1759347032572,-500.0,0.00016999,2]
[388747232,1759347032581,-500.0,0.00016999,2]
[388747233,1759347032591,-500.0,0.00016999,2]
[388747234,1759347032601,-500.0,0.00016999,2]
[388747235,1759347032617,-500.0,0.00016999,2]
[388747236,1759347032627,-500.0,0.00016999,2]
[388747237,1759347032637,-500.0,0.00016999,2]
[388747238,1759347032647,-500.0,0.00016999,2]
[388747239,1759347032658,-500.0,0.00016999,2]
[388747240,1759347032669,-197.0788827,0.00016999,2]
[388747241,1759347032679,-500.0,0.00016999,2]
[388747242,1759347032690,-500.0,0.00016999,2]
[388747243,1759347032700,-500.0,0.00016999,2]
[388747244,1759347032713,-500.0,0.00016999,2]
[388747245,1759347032724,-500.0,0.00016999,2]
[388747246,1759347032734,-500.0,0.00016999,2]
[388747247,1759347032745,-500.0,0.00016999,2]
[388747248,1759347032756,-500.0,0.00016999,2]
[388747249,1759347032766,-186.54432902,0.00016999,2]
[388747250,1759347032777,-500.0,0.00016999,2]
[388747251,1759347032787,-368.01063452,0.00016999,2]
[388747252,1759347032797,-500.0,0.00016999,2]
[388747253,1759347032808,-500.0,0.00016999,2]
[388747254,1759347032819,-500.0,0.00016999,2]
[388747255,1759347032830,-500.0,0.00016999,2]
[388747256,1759347032841,-500.0,0.00016999,2]
[388747257,1759347032852,-500.0,0.00016999,2]
[388747258,1759347032863,-500.0,0.00016999,2]
[388747259,1759347032874,-500.0,0.00016999,2]
[388747260,1759347032884,-500.0,0.00016999,2]
[388747261,1759347032895,-500.0,0.00016999,2]
[388747262,1759347032905,-500.0,0.00016999,2]
[388747263,1759347032916,-183.35702595,0.00016999,2]
[388747264,1759347032930,-235.05300286,0.00016999,2]
[388747265,1759347032941,-475.41162271,0.00016999,2]
[388747266,1759347032951,-500.0,0.00016999,2]
[388747267,1759347032962,-622.00957653,0.00016999,2]
[388747268,1759347032972,-98088.86344516,0.00017,2]
[388747269,1759347032985,-2064.39511108,0.00017,2]
[388747270,1759347032999,-77626.06191559,0.00017,2]
[388747271,1759347033142,-658.25,0.00017,2]
[388747272,1759347033156,-4910.94396834,0.00017,2]
[388747433,1759347039670,-1540.60399974,0.00016999,2]
[388747440,1759347039726,-17375.39600026,0.00016999,2]
[388747442,1759347039736,-4214809.5403597,0.00017,2]
[388747444,1759347039747,-150.0,0.00017,2]
[388747446,1759347039757,-150.0,0.00017,2]
[388747448,1759347039766,-1430.35626668,0.00017,2]
[388747450,1759347039776,-184.72718694,0.00017,2]
[388747452,1759347039786,-150.0,0.00017,2]
[388747454,1759347039796,-1397.3355796,0.00017,2]
[388747456,1759347039806,-150.0,0.00017,2]
[388747458,1759347039816,-16561.41457319,0.00017,2]
[388747460,1759347039825,-2845337.62608596,0.00017,2]
[388747857,1759347043974,500.0,0.00030136,120]
[388748016,1759347045772,167.4,0.00016473,2]
[388748019,1759347045798,-413.88950135,0.00017,2]
[388748022,1759347045809,-293.23937193,0.00017,2]